[Event "Grand Prix Romania 1st Stage 2024"]
[Site "Bucuresti"]
[Date "2024.03.23"]
[Round "4.18"]
[White "Moroni, Luca Jr"]
[Black "Manea, Alexandru"]
[Result "1-0"]
[ECO "B13"]
[WhiteElo "2580"]
[BlackElo "2287"]
[Annotator "TA"]
[PlyCount "83"]
[EventDate "2024.03.20"]
[EventType "swiss"]
[EventCountry "ROU"]
[SourceTitle "playchess.com"]
[Source "ChessBase"]
[SourceQuality "1"]
[TimeControl "900+5"]

{[%evp 9,83,0,0,0,6,0,5,-10,-14,-41,-27,-72,-73,-108,-108,-117,-112,-120,-130,-116,-132,-159,-95,-83,-47,-62,-45,-87,-37,-43,-27,-116,-119,-115,-127,-541,-533,-539,-310,-613,-595,-587,-494,-748,-564,-635,-597,-482,-105,-115,0,-340,88,0,0,-25,-7,-33,-33,-33,-36,-261,87,82,132,125,137,128,257,281,272,214,29991,0,0,0]} 1. d4 {[%emt 0:00:04]} d5 {[%emt 0:00:01]} 2. Bf4 {[%emt 0:00:02]} c5 {[%emt 0:00:02]} 3. e3 {[%emt 0:00:02]} cxd4 {[%emt 0:00:01]} 4. exd4 {[%emt 0:00:01]} Nc6 {[%emt 0:00:01]} 5. c3 {[%emt 0:00:01]} Bf5 {[%emt 0:00:04]} 6. Nf3 {[%emt 0:00:09]} e6 {[%emt 0:00:03]} 7. Qb3 {[%emt 0:00:10]} Qd7 {[%emt 0:00:27]} 8. Nbd2 {[%emt 0:00:44]} f6 {[%emt 0:00:04]} 9. Be2 {[%emt 0:00:32]} g5 {[%emt 0:00:26]} 10. Be3 {[%emt 0:00:02]} Bd6 {[%emt 0:00:38]} 11. h4 {[%emt 0:00:35]} g4 {[%emt 0:00:04]} 12. Nh2 {[%emt 0:00:06]} h5 {[%emt 0:00:05]} 13. Nhf1 {[%emt 0:00:14]} Nge7 {[%emt 0:00:03]} 14. Ng3 {[%emt 0:00:41]} Bg6 {[%emt 0:00:06]} 15. Bd1 {[%emt 0:00:17]} Kf7 {[%emt 0:03:46]} ({Black should play} 15... Qc7 {[%cal Of6f5] Threatens to win with ...f5!} 16. O-O O-O) 16. Bc2 $17 {[%emt 0:00:32]} Qc7 {[%emt 0:02:10]} 17. Bxg6+ {[%emt 0:00:40]} Nxg6 {[%emt 0:00:01]} 18. Ne2 {[%emt 0:00:03] [#]} b5 {[%emt 0:02:35]} 19. Qxb5 $15 {[%emt 0:01:38]} Rab8 $36 {[%emt 0:00:02][%mdl 2048] Black has good play.} 20. Qa4 {[%emt 0:00:41]} (20. Qd3 $11) 20... Rxb2 $17 {[%emt 0:00:01]} 21. Nb3 {[%emt 0:00:06]} g3 {[%emt 0:00:50]} 22. f3 $2 {[%emt 0:03:16][%mdl 8192]} (22. Bc1 $17 {is more resistant.} Rxe2+ 23. Kxe2) 22... Bf4 $19 {[%emt 0:02:24]} 23. Bg1 {[%emt 0:04:52]} Qd6 {[%emt 0:00:30]} 24. Qa6 $2 {[%emt 0:00:31]} (24. Nc5) 24... Rb8 {[%emt 0:00:33]} 25. Kf1 {[%emt 0:00:11]} Bh6 {[%emt 0:00:46] Strongly threatening ...Rb6.} 26. Qd3 {[%emt 0:00:08]} (26. Rh3 $142 Rb6 27. Qd3) 26... f5 {[%emt 0:00:09]} 27. Be3 {[%emt 0:00:05]} Bxe3 {[%emt 0:00:14]} 28. Qxe3 {[%emt 0:00:01]} Qa3 $2 {[%emt 0:00:05]} (28... f4 $19 29. Qc1 Qa3) 29. Re1 $17 {[%emt 0:00:36]} Re8 {[%emt 0:00:38]} (29... Rxa2 $6 30. Nbc1 Ra1 31. Rh3 $11 (31. Nxg3 Nxd4 32. Nxh5 Qa6+ 33. Kg1 Ne2+ 34. Rxe2 Rh8 $11)) (29... Nce7 $17 {aiming for ...f4.} 30. f4 Qxa2 (30... Rxa2 31. Nc5 $11)) 30. Nbc1 $2 {[%emt 0:00:04][%mdl 8192]} (30. Rh3 $11 Rxe2 (30... Qxa2 31. Nbc1 $18) 31. Rxe2 (31. Qxe2 Nf4 $11)) 30... Qd6 $2 {[%emt 0:00:22]} (30... Nb4 $1 $19 31. Qh6 Rh8 (31... Nxa2 $2 32. Qh7+ Kf8 33. Qxg6 $18)) 31. f4 {[%emt 0:00:17]} (31. Nd3 $16 Rxa2 32. Qh6) 31... Na5 $11 {[%emt 0:00:09]} 32. Nd3 {[%emt 0:00:05]} Rxa2 {[%emt 0:00:04]} 33. Ne5+ {[%emt 0:00:03]} Nxe5 {[%emt 0:00:03]} 34. fxe5 {[%emt 0:00:01]} Qf8 {[%emt 0:00:01] White must now prevent ...Nc4.} 35. Qg5 $2 {[%emt 0:00:05] [#]} (35. Kg1 $15) 35... Qg7 $2 {[%emt 0:00:02]} (35... Qh8 $1 $19 {Hoping for ...Rg8.} 36. Qc1 (36. Qxg3 Rg8 $11) (36. Nxg3 $2 Rg8 $19) 36... Nb3) 36. Qxh5+ $16 {[%emt 0:00:00]} Qg6 {[%emt 0:00:25] [#]} (36... Ke7 $142) 37. Qxg6+ $1 (37. Nxg3 $6 Qxh5 38. Nxh5 Nb3 $11) 37... Kxg6 {[%emt 0:00:00]} 38. Rh3 $1 {[%emt 0:00:08]} (38. Nxg3 $6 Nc4 $11) 38... f4 {[%emt 0:00:02]} 39. Nxf4+ $18 {[%emt 0:00:02]} Kf5 {[%emt 0:00:23]} 40. Nh5 {[%emt 0:00:00]} Nc4 $2 {[%emt 0:00:00]} (40... Rh8 $18) 41. Ng7+ $2 {[%emt 0:00:00]} (41. Rxg3 {mates} Nd2+ 42. Kg1 Ne4 43. Rg7 Rxg2+ 44. Kxg2 Re7 45. Rf1+ (45. Rxe7 Kg6 46. Rxe4 dxe4 47. Nf6 Kf5 48. Kg3 Kg6 49. Kf4 Kh6 50. Rh7+ Kg6 51. h5#) 45... Nf2 46. Rxf2+ (46. Rxe7 Ke4 47. Rxf2 Kd3 48. Rc7 Ke3 49. Nf4 a5 50. Rf7 Ke4 51. Re2#) 46... Ke4 47. Rg3 (47. Rxe7 Kd3 48. Rc7 Ke3 49. Nf4 a6 50. Rf7 Ke4 51. Re2#) 47... Rf7 48. Re2+ Kf5 49. Rg5#) 41... Kg4 $11 {[%emt 0:00:00]} 42. Nxe8 {[%emt 0:00:00][%mdl 32768] What a bad dream for Black.   Weighted Error Value: White=0.84/Black=0.82.  Loses game:     	White=3     	---        Missed win:     	White=1     	Black=2      Mistake:       	White=4     	Black=6      Inaccurate:     	White=4     	Black=2      OK:         	White=6     	Black=10     Best:        	White=3     	Black=5      Strong:       	White=2     	---       . Loss on time!?} 1-0

[Event "Grand Prix Romania 1st Stage 2024"]
[Site "Bucuresti"]
[Date "2024.03.23"]
[Round "4.19"]
[White "Baranciuc, Alexandr"]
[Black "Jianu, Vlad-Cristian"]
[Result "0-1"]
[ECO "B13"]
[WhiteElo "2336"]
[BlackElo "2491"]
[Annotator "RC"]
[PlyCount "110"]
[EventDate "2024.03.20"]
[EventType "swiss"]
[EventCountry "ROU"]
[SourceTitle "playchess.com"]
[Source "ChessBase"]
[SourceQuality "1"]
[TimeControl "900+5"]

1. e4 {[%emt 0:00:02]} c6 {[%emt 0:00:01]} 2. d4 {[%emt 0:00:03]} d5 {[%emt 0:00:01]} 3. exd5 {[%emt 0:00:02]} cxd5 {[%emt 0:00:02]} 4. Bd3 {[%emt 0:00:01]} Nc6 {[%emt 0:00:01]} 5. c3 {[%emt 0:00:01]} Nf6 {[%emt 0:00:01]} 6. h3 {[%emt 0:00:06]} e5 {[%emt 0:00:17]} 7. dxe5 {[%emt 0:00:06]} Nxe5 {[%emt 0:00:01]} 8. Nf3 {[%emt 0:00:34]} Nxd3+ 9. Qxd3 {[%emt 0:00:01]} Bd6 {[%emt 0:00:04]} 10. O-O {[%emt 0:00:03]} O-O {[%emt 0:00:02]} 11. Bg5 {[%emt 0:00:39]} h6 {[%emt 0:00:04]} 12. Bh4 {[%emt 0:00:01]} g5 {[%emt 0:00:03]} 13. Bg3 {[%emt 0:00:01]} Bxg3 {[%emt 0:00:02]} 14. fxg3 {[%emt 0:00:01]} Re8 {[%emt 0:00:12]} 15. Nbd2 {[%emt 0:00:43]} Ne4 {[%emt 0:01:41]} 16. Nd4 {[%emt 0:00:39]} Qd6 {[%emt 0:03:41]} 17. Nxe4 {[%emt 0:00:08]} Rxe4 {[%emt 0:00:41]} 18. Rae1 {[%emt 0:01:12]} Rxe1 {[%emt 0:00:16]} 19. Rxe1 {[%emt 0:00:01]} Bd7 {[%emt 0:00:01]} 20. Kf2 {[%emt 0:01:03]} Rd8 {[%emt 0:00:49]} 21. Re3 {[%emt 0:00:18]} a6 {[%emt 0:00:41]} 22. Nf3 {[%emt 0:00:48]} Qb6 {[%emt 0:01:14]} 23. b3 {[%emt 0:00:10]} Be6 {[%emt 0:01:31]} 24. Qd4 {[%emt 0:00:05]} Qxd4 {[%emt 0:00:02]} 25. Nxd4 {[%emt 0:00:02]} Rd6 {[%emt 0:00:01]} 26. Ke2 {[%emt 0:01:00]} Kg7 {[%emt 0:00:02]} 27. Kd3 {[%emt 0:00:02]} Kf6 {[%emt 0:00:01]} 28. g4 {[%emt 0:00:36]} Rd8 {[%emt 0:00:30]} 29. Nc2 {[%emt 0:00:36]} Ke7 {[%emt 0:00:25]} 30. Kd4 {[%emt 0:00:03]} Kd6 {[%emt 0:00:01]} 31. Rf3 {[%emt 0:00:20]} Rh8 {[%emt 0:01:25]} 32. Ne3 {[%emt 0:00:34]} h5 {[%emt 0:00:01]} 33. gxh5 {[%emt 0:01:32]} Rxh5 {[%emt 0:00:01]} 34. Nf5+ {[%emt 0:00:18]} Kd7 {[%emt 0:01:49]} 35. Ke5 {[%emt 0:00:04]} Rh8 {[%emt 0:00:02]} 36. Kf6 {[%emt 0:00:18]} Rg8 {[%emt 0:00:17]} 37. Ng7 {[%emt 0:00:49]} g4 {[%emt 0:00:12]} 38. hxg4 {[%emt 0:00:39]} Bxg4 {[%emt 0:00:01]} 39. Re3 {[%emt 0:00:04]} Be6 {[%emt 0:00:18]} 40. Re5 {[%emt 0:01:14]} Rh8 {[%emt 0:00:22]} 41. Rh5 {[%emt 0:00:04]} Rc8 {[%emt 0:00:02]} 42. Nxe6 fxe6 {[%emt 0:00:01]} 43. Ke5 {[%emt 0:01:17]} Rxc3 {[%emt 0:00:19]} 44. Rh7+ {[%emt 0:00:02]} Kc6 {[%emt 0:00:02]} 45. Kxe6 {[%emt 0:00:06]} Rg3 {[%emt 0:00:14]} 46. Rh8 {[%emt 0:01:22]} d4 {[%emt 0:00:25]} 47. Rc8+ {[%emt 0:00:19]} Kb5 {[%emt 0:00:09]} 48. Rd8 {[%emt 0:00:29]} d3 {[%emt 0:00:31]} 49. Ke5 {[%emt 0:00:12]} Kb4 {[%emt 0:00:06]} 50. Ke4 {[%emt 0:00:13]} Kc3 {[%emt 0:00:17]} 51. Rc8+ {[%emt 0:00:08]} Kd2 {[%emt 0:00:01]} 52. Rd8 {[%emt 0:00:06]} Ke2 {[%emt 0:00:01]} 53. Kf4 {[%emt 0:00:05]} Rxg2 {[%emt 0:00:05]} 54. Re8+ {[%emt 0:00:00]} Kd2 {[%emt 0:00:04]} 55. Re7 {[%emt 0:00:03]} Kc1 {[%emt 0:00:11]} 0-1

[Event "Grand Prix Romania 1st Stage 2024"]
[Site "Bucuresti"]
[Date "2024.03.23"]
[Round "4.20"]
[White "Zubcu, Vlad-George"]
[Black "Zajic, Milan"]
[Result "0-1"]
[ECO "B06"]
[WhiteElo "2181"]
[BlackElo "2436"]
[Annotator "TA"]
[PlyCount "60"]
[EventDate "2024.03.20"]
[EventType "swiss"]
[EventCountry "ROU"]
[SourceTitle "playchess.com"]
[Source "ChessBase"]
[SourceQuality "1"]
[TimeControl "900+5"]

{[%evp 9,59,27,54,50,59,30,44,23,37,29,31,26,30,0,45,-29,21,0,0,-14,-8,-4,-8,-22,5,-2,0,-37,-5,-21,0,0,11,-70,-82,-175,-169,-170,-152,-182,-191,-191,-181,-615,-537,-1336,-1354,-29980,-29984,-29987,-29988,-29999]} 1. e4 {[%emt 0:00:02]} g6 {[%emt 0:00:08]} 2. d4 {[%emt 0:00:06]} Bg7 {[%emt 0:00:01]} 3. Nc3 {[%emt 0:00:01]} a6 {[%emt 0:00:02]} 4. a4 {[%emt 0:00:37]} d6 {[%emt 0:00:04]} 5. Nf3 {[%emt 0:01:11]} Nd7 {[%emt 0:00:58]} 6. Bc4 {[%emt 0:00:22]} e6 {[%emt 0:00:09]} 7. h4 {[%emt 0:00:14]} h6 {[%emt 0:00:30] Against Bg5} 8. Bf4 {[%emt 0:01:34] White is slightly better.} b6 {[%emt 0:00:09]} 9. Qe2 {[%emt 0:01:23]} Bb7 {[%emt 0:00:14]} 10. Bb3 {[%emt 0:00:31]} Ne7 {[%emt 0:01:01]} 11. g4 {[%emt 0:00:31]} Nf6 {[%emt 0:00:33]} 12. Rg1 {[%emt 0:00:39]} (12. O-O-O $1 $14) 12... d5 {[%emt 0:02:42]} (12... b5 $142) 13. exd5 {[%emt 0:00:54]} (13. Be5 $5) 13... Nexd5 {[%emt 0:00:32]} 14. Be5 {[%emt 0:01:30]} Nxc3 {[%emt 0:00:21]} 15. bxc3 {[%emt 0:00:01]} Qe7 {[%emt 0:00:23]} 16. Nd2 {[%emt 0:01:00]} Kf8 {[%emt 0:03:01]} 17. a5 {[%emt 0:00:24]} b5 {[%emt 0:00:07]} 18. c4 {[%emt 0:00:02]} bxc4 {[%emt 0:00:15]} 19. Bxc4 {[%emt 0:00:33]} (19. Nxc4 Ne4 20. Nd2 Bxe5 21. dxe5 Nc5 $16) 19... Nd5 {[%emt 0:00:16]} 20. h5 {[%emt 0:02:39] Threatens to win with hxg6.} g5 {[%emt 0:01:32]} 21. Bb3 {[%emt 0:01:54]} (21. Bxd5 $11 Bxd5 22. c4) 21... Nf4 $15 {[%emt 0:00:37]} 22. Bxf4 {[%emt 0:00:24]} (22. Qe3 $17) 22... gxf4 $19 {[%emt 0:00:02]} 23. c3 {[%emt 0:00:09]} c5 {[%emt 0:00:05]} 24. Rb1 {[%emt 0:00:06]} cxd4 {[%emt 0:00:17]} 25. cxd4 {[%emt 0:00:12]} Bxd4 {[%emt 0:00:08] [#] ...Rd8 is the strong threat.} 26. Nc4 $2 {[%emt 0:00:08]} (26. Nf3 Rd8 27. Kf1) 26... Rd8 {[%emt 0:01:36]} 27. Kf1 {[%emt 0:00:01]} Qh4 {[%emt 0:00:18] ( -> ...Qh3+)} 28. Qc2 {[%emt 0:00:11]} Qh3+ {[%emt 0:00:10] Black mates.} 29. Ke1 {[%emt 0:00:01]} Bc3+ {[%emt 0:00:10] This pair of bishops is nice.} 30. Ke2 {[%emt 0:00:03]} Bf3# {[%emt 0:00:07] Weighted Error Value: White=0.92/Black=0.12 (very precise) .  Mistake:       	White=4     	Black=1      Inaccurate:     	White=5     	Black=3      OK:         	White=1     	Black=10     Best:        	---       	Black=1} 0-1

[Event "Grand Prix Romania 1st Stage 2024"]
[Site "Bucuresti"]
[Date "2024.03.23"]
[Round "4.21"]
[White "Mikhalevski, Victor"]
[Black "Sachilaru, Alexandru"]
[Result "1-0"]
[ECO "A11"]
[WhiteElo "2514"]
[BlackElo "2203"]
[Annotator "TA"]
[PlyCount "43"]
[EventDate "2024.03.20"]
[EventType "swiss"]
[EventCountry "ROU"]
[SourceTitle "playchess.com"]
[Source "ChessBase"]
[SourceQuality "1"]
[TimeControl "900+5"]

{[%evp 14,43,40,39,41,39,52,27,49,46,58,14,68,43,45,22,24,29,104,104,104,96,158,143,451,464,462,437,570,561,2113,2062]} 1. Nf3 {[%emt 0:00:02]} Nf6 {[%emt 0:00:01]} 2. g3 {[%emt 0:00:01]} g6 {[%emt 0:00:01]} 3. b3 {[%emt 0:00:05]} Bg7 {[%emt 0:00:03]} 4. Bb2 {[%emt 0:00:01]} O-O {[%emt 0:00:03]} 5. Bg2 {[%emt 0:00:05]} d5 {[%emt 0:00:06]} 6. c4 {[%emt 0:00:05]} c6 {[%emt 0:00:05]} 7. O-O {[%emt 0:00:03]} Bf5 {[%emt 0:00:14]} 8. d3 {[%emt 0:00:04]} Na6 {[%emt 0:00:45]} 9. Nbd2 {[%emt 0:00:40]} Rc8 {[%emt 0:00:21]} 10. h3 {[%emt 0:00:18]} b5 {[%emt 0:02:01] White has an edge.} 11. Rc1 {[%emt 0:00:17]} Qb6 {[%emt 0:01:00]} 12. Bd4 {[%emt 0:00:36]} Qb7 {[%emt 0:00:30]} (12... c5 $11 13. Be5 d4) 13. Qc2 {[%emt 0:00:16]} Rfd8 {[%emt 0:01:17]} 14. Qb2 {[%emt 0:00:12]} bxc4 {[%emt 0:01:02]} 15. dxc4 {[%emt 0:00:02]} Be4 {[%emt 0:01:21]} (15... Nc7 $11) 16. Nxe4 $16 {[%emt 0:01:11]} dxe4 {[%emt 0:00:02]} 17. Ng5 {[%emt 0:00:04][%cal Bf3g5,Bg5e4,Be4f6,Bf6h5][%mdl 32]} c5 {[%emt 0:03:21]} (17... Qd7 $142 18. Rcd1 e3) 18. Be5 {[%emt 0:00:25] White is more active.} Bh6 $2 {[%emt 0:01:05][%mdl 8192] [#] Loses the game.} (18... h6 $2 19. Nxe4 Qb6 20. Nc3) (18... Nb4 $16 {is a better chance.} 19. Nxe4 Qa6) 19. Bxf6 $18 {[%emt 0:01:10] White is clearly winning.} exf6 {[%emt 0:00:59]} 20. Nxe4 {[%emt 0:00:02]} ({Not} 20. Qxf6 Bxg5 21. Qxg5 Re8 $16) (20. Bxe4 $2 Qe7 $19) 20... Bxc1 {[%emt 0:00:56]} 21. Nxf6+ {[%emt 0:00:02]} ({Inferior is} 21. Qxc1 Qe7 $15) 21... Kg7 {[%emt 0:00:36]} 22. Nh5+ {[%emt 0:00:27] Weighted Error Value: White=0.14 (very precise) /Black=0.68.  Loses game:     	---       	Black=1      Mistake:       	---       	Black=3      Inaccurate:     	White=1     	Black=2      OK:         	White=4     	Black=1      Best:        	White=2     	---} (22. Qxc1 Qe7 23. Nd5 Qe5 $14) 1-0

[Event "Grand Prix Romania 1st Stage 2024"]
[Site "Bucuresti"]
[Date "2024.03.23"]
[Round "4.22"]
[White "Rozen, Eytan"]
[Black "Gulie, Cosmin"]
[Result "1-0"]
[ECO "D03"]
[WhiteElo "2487"]
[BlackElo "1987"]
[Annotator "TA"]
[PlyCount "55"]
[EventDate "2024.03.20"]
[EventType "swiss"]
[EventCountry "ROU"]
[SourceTitle "playchess.com"]
[Source "ChessBase"]
[SourceQuality "1"]
[TimeControl "900+5"]

{[%evp 15,55,0,0,-14,0,0,0,0,-14,-15,71,0,73,52,81,67,118,-26,80,72,91,81,91,87,84,87,114,121,150,149,151,125,122,124,189,173,584,603,29984,738,29997,237]} 1. d4 {[%emt 0:00:06]} d5 {[%emt 0:00:04]} 2. Nf3 {[%emt 0:00:02]} Nf6 {[%emt 0:00:08]} 3. c3 {[%emt 0:00:02]} e6 {[%emt 0:00:10]} 4. Bg5 {[%emt 0:00:05]} Be7 {[%emt 0:00:03]} 5. Nbd2 {[%emt 0:00:02]} Nbd7 {[%emt 0:00:03]} 6. e3 {[%emt 0:00:02]} O-O {[%emt 0:00:06]} 7. Bd3 {[%emt 0:00:03]} c5 {[%emt 0:00:10]} 8. Qe2 {[%emt 0:00:35]} b6 {[%emt 0:00:07]} 9. h4 {[%emt 0:00:34]} Bb7 {[%emt 0:00:07]} 10. Bf4 {[%emt 0:00:35]} c4 {[%emt 0:00:41]} 11. Bc2 {[%emt 0:00:03] The position is equal.} b5 {[%emt 0:00:01]} 12. a3 {[%emt 0:00:35]} Ne4 {[%emt 0:01:45] [#]} (12... a5 $11) 13. Ng5 {[%emt 0:00:21]} (13. Nxe4 $1 $16 dxe4 14. Ng5) 13... Ndf6 {[%emt 0:02:59]} (13... Nef6 $1 $11) 14. Ndxe4 $16 {[%emt 0:01:19]} dxe4 {[%emt 0:00:15]} 15. Be5 {[%emt 0:00:20]} Nd7 {[%emt 0:02:50] [#]} (15... h6 $14) 16. Nxe4 {[%emt 0:01:15] White is much more active.} (16. Bxe4 $6 Bxe4 17. Nxe4 Nxe5 18. dxe5 Qd5 $11 (18... Bxh4 $2 19. Qh5 $18)) (16. Qg4 $1 $16 {[%cal Og5e6] Black must now prevent Nxe6!} Nxe5 17. dxe5) 16... Nxe5 {[%emt 0:00:12]} (16... f5 $1 $11 17. Nd2 Nxe5 (17... Bxg2 18. Rg1 $16) 18. dxe5 Bxg2) 17. dxe5 {[%emt 0:00:02]} Bxe4 {[%emt 0:00:58]} 18. Bxe4 {[%emt 0:00:02] And now Rd1 would win.} Rc8 {[%emt 0:00:10]} 19. Qh5 $40 {[%emt 0:01:44][%csl Ge4][%cal Rh5h7][%mdl 128] White goes for the king.} g6 {[%emt 0:00:26]} 20. Qe2 {[%emt 0:00:51]} Rc5 {[%emt 0:02:30]} 21. Rd1 {[%emt 0:00:12]} Qc7 {[%emt 0:00:19]} 22. f4 {[%emt 0:00:03]} Rd8 {[%emt 0:00:16]} 23. h5 {[%emt 0:00:19]} Rxd1+ {[%emt 0:00:16]} 24. Qxd1 {[%emt 0:00:01]} Qd8 {[%emt 0:00:18]} (24... Bf8 $16 25. Qg4 Qc8) 25. Qg4 $18 {[%emt 0:00:02][%cal Rh5g6] Hoping for hxg6.} Qf8 $2 {[%emt 0:00:34]} (25... g5 26. h6 Qe8) 26. hxg6 {[%emt 0:00:05]} fxg6 {[%emt 0:00:11]} 27. Qxe6+ {[%emt 0:00:06]} (27. Rxh7 $142 Qg7 28. Rxg7+ Kxg7 29. Qxg6+ (29. Qxe6 Kf8 $18) 29... Kf8 30. Qh6+ (30. Qxe6 b4 31. axb4 Bh4+ 32. g3 Bxg3+ 33. Ke2 Rb5 34. Qf6+ Kg8) 30... Ke8 31. Qxe6 Kf8 32. Ke2) 27... Kg7 {[%emt 0:00:53] [#]} 28. Rxh7+ $3 {[%emt 0:00:02][%mdl 512] Weighted Error Value: White=0.21 (precise) /Black=0.94.  Mistake:       	White=3     	Black=6      Inaccurate:     	---       	Black=3      OK:         	White=8     	Black=3      Best:        	White=2     	---} 1-0

[Event "Grand Prix Romania 1st Stage 2024"]
[Site "Bucuresti"]
[Date "2024.03.23"]
[Round "4.23"]
[White "Grigore, George-Gabriel"]
[Black "Filip, Andrei"]
[Result "1/2-1/2"]
[ECO "E32"]
[WhiteElo "2423"]
[BlackElo "2289"]
[Annotator "RC"]
[PlyCount "70"]
[EventDate "2024.03.20"]
[EventType "swiss"]
[EventCountry "ROU"]
[SourceTitle "playchess.com"]
[Source "ChessBase"]
[SourceQuality "1"]
[TimeControl "900+5"]

1. d4 {[%emt 0:00:03]} Nf6 {[%emt 0:00:06]} 2. c4 {[%emt 0:00:02]} e6 {[%emt 0:00:01]} 3. Nc3 {[%emt 0:00:04]} Bb4 {[%emt 0:00:06]} 4. Qc2 {[%emt 0:00:02]} O-O {[%emt 0:00:04]} 5. a3 {[%emt 0:00:05]} Bxc3+ {[%emt 0:00:08]} 6. Qxc3 {[%emt 0:00:02]} b5 {[%emt 0:00:05]} 7. cxb5 {[%emt 0:00:07]} c6 {[%emt 0:00:01]} 8. Bg5 {[%emt 0:00:07]} cxb5 {[%emt 0:00:07]} 9. e3 {[%emt 0:00:05]} Bb7 {[%emt 0:00:43]} 10. Nf3 {[%emt 0:00:03]} h6 {[%emt 0:01:24]} 11. Bxf6 {[%emt 0:02:37]} Qxf6 {[%emt 0:00:14]} 12. Be2 {[%emt 0:00:02]} Rc8 {[%emt 0:00:47]} 13. Qd3 {[%emt 0:01:36]} a6 {[%emt 0:00:35]} 14. O-O {[%emt 0:00:04]} Nc6 {[%emt 0:00:24]} 15. Rfc1 {[%emt 0:00:40]} Na5 {[%emt 0:00:54]} 16. Rc3 {[%emt 0:00:36]} Qd8 {[%emt 0:01:31]} 17. Rac1 {[%emt 0:01:26]} Nc4 {[%emt 0:00:55]} 18. Qc2 {[%emt 0:01:07]} Nb6 {[%emt 0:00:31]} 19. Nd2 {[%emt 0:03:20]} Rxc3 {[%emt 0:00:14]} 20. bxc3 {[%emt 0:00:11]} Rc8 {[%emt 0:00:06]} 21. Qb3 {[%emt 0:01:11]} Bd5 {[%emt 0:01:39]} 22. Qb4 {[%emt 0:00:19]} Bc4 {[%emt 0:01:31]} 23. Nxc4 {[%emt 0:00:27]} Nxc4 {[%emt 0:00:05]} 24. a4 {[%emt 0:00:25]} Qg5 {[%emt 0:00:30]} 25. h4 {[%emt 0:01:26]} Qxh4 {[%emt 0:00:40]} 26. axb5 {[%emt 0:00:05]} axb5 {[%emt 0:00:07]} 27. Qxb5 {[%emt 0:00:09]} d5 {[%emt 0:00:16]} 28. Bxc4 {[%emt 0:00:05]} Rxc4 {[%emt 0:00:02]} 29. Qe8+ {[%emt 0:00:05]} Kh7 {[%emt 0:00:02]} 30. Qxf7 {[%emt 0:00:01]} Qe4 {[%emt 0:00:12]} 31. g3 {[%emt 0:00:45]} Rc6 {[%emt 0:00:19]} 32. Qf4 {[%emt 0:00:13]} Qd3 {[%emt 0:00:18]} 33. Kg2 {[%emt 0:00:07]} Rxc3 {[%emt 0:00:42]} 34. Rxc3 {[%emt 0:00:01]} Qxc3 {[%emt 0:00:01]} 35. Qf7 {[%emt 0:00:02]} Qc6 {[%emt 0:00:08]} 1/2-1/2